[Event "Early-Titled-Tuesday-Blitz-September-26-2023"]
[Site "Chess.com"]
[Date "2023.09.26"]
[Round "8"]
[White "ArtemDyachuk"]
[Black "xxysoul6"]
[Result "0-1"]
[WhiteElo "2698"]
[BlackElo "3009"]
[TimeControl "180+1"]
[EndTime "9:27:08 PDT"]
[Termination "xxysoul6 won by resignation"]

1. e4 {[%clk 0:03:00.9]} 1... e6 {[%clk 0:02:57.9]} 2. d4 {[%clk 0:03:00.7]}
2... d5 {[%clk 0:02:58.5]} 3. e5 {[%clk 0:03:01]} 3... c5 {[%clk 0:02:58]} 4. c3
{[%clk 0:03:01.5]} 4... Nc6 {[%clk 0:02:58.2]} 5. Nf3 {[%clk 0:03:01.9]} 5...
Bd7 {[%clk 0:02:58.8]} 6. Be2 {[%clk 0:03:01.4]} 6... Nge7 {[%clk 0:02:58.3]} 7.
Na3 {[%clk 0:03:01.2]} 7... cxd4 {[%clk 0:02:57.4]} 8. cxd4 {[%clk 0:03:00.3]}
8... Nf5 {[%clk 0:02:57.8]} 9. Nc2 {[%clk 0:03:00.6]} 9... Be7 {[%clk
0:02:58.3]} 10. O-O {[%clk 0:02:56.9]} 10... O-O {[%clk 0:02:58]} 11. Rb1 {[%clk
0:02:56.4]} 11... Rc8 {[%clk 0:02:56.4]} 12. b4 {[%clk 0:02:55.1]} 12... a6
{[%clk 0:02:55.8]} 13. a4 {[%clk 0:02:49.2]} 13... Nh4 {[%clk 0:02:55.9]} 14.
Nxh4 {[%clk 0:02:45.8]} 14... Bxh4 {[%clk 0:02:56.8]} 15. Be3 {[%clk 0:02:40.8]}
15... Re8 {[%clk 0:02:53.5]} 16. Ne1 {[%clk 0:02:23.9]} 16... Be7 {[%clk
0:02:40.8]} 17. Nd3 {[%clk 0:02:23.2]} 17... Bf8 {[%clk 0:02:41.4]} 18. f4
{[%clk 0:02:06.3]} 18... a5 {[%clk 0:02:41.2]} 19. b5 {[%clk 0:01:57.8]} 19...
Nb4 {[%clk 0:02:41.5]} 20. Rb2 {[%clk 0:01:49.3]} 20... Nxd3 {[%clk 0:02:36.6]}
21. Bxd3 {[%clk 0:01:48.9]} 21... Qb6 {[%clk 0:02:35.5]} 22. Qg4 {[%clk
0:01:18.9]} 22... Rc3 {[%clk 0:02:33.4]} 23. Rd1 {[%clk 0:01:05.4]} 23... Rec8
{[%clk 0:02:32.9]} 24. h4 {[%clk 0:01:02.7]} 24... Ra3 {[%clk 0:02:31.1]} 25.
Rf2 {[%clk 0:00:31.2]} 25... Rcc3 {[%clk 0:02:30]} 26. Qe2 {[%clk 0:00:21.6]}
26... Rxa4 {[%clk 0:02:25.3]} 27. Rdf1 {[%clk 0:00:07.5]} 27... Raa3 {[%clk
0:02:22.9]} 28. f5 {[%clk 0:00:07.8]} 28... Rxd3 {[%clk 0:02:21.3]} 29. fxe6
{[%clk 0:00:07.9]} 29... Bxe6 {[%clk 0:02:20.7]} 30. Qh5 {[%clk 0:00:04.2]}
30... g6 {[%clk 0:02:19.2]} 31. Qg5 {[%clk 0:00:03.4]} 31... Rxe3 {[%clk
0:02:18.5]} 32. h5 {[%clk 0:00:02.4]} 32... Rg3 {[%clk 0:02:18.3]} 33. Qf6
{[%clk 0:00:02.5]} 33... Qxd4 {[%clk 0:02:18]} 34. hxg6 {[%clk 0:00:02.3]} 0-1

[Event "Early-Titled-Tuesday-Blitz-September-26-2023"]
[Site "Chess.com"]
[Date "2023.09.26"]
[Round "8"]
[White "Witik"]
[Black "Elprofessor21"]
[Result "0-1"]
[WhiteElo "2741"]
[BlackElo "2644"]
[TimeControl "180+1"]
[EndTime "9:27:09 PDT"]
[Termination "Elprofessor21 won by resignation"]

1. d4 {[%clk 0:02:59.6]} 1... Nf6 {[%clk 0:02:58.2]} 2. c4 {[%clk 0:02:59.5]}
2... g6 {[%clk 0:02:56]} 3. Nc3 {[%clk 0:02:58.8]} 3... Bg7 {[%clk 0:02:55.9]}
4. e4 {[%clk 0:02:58.7]} 4... O-O {[%clk 0:02:56.3]} 5. Nf3 {[%clk 0:02:59]}
5... d6 {[%clk 0:02:54.4]} 6. Be2 {[%clk 0:02:59.3]} 6... c5 {[%clk 0:02:53]} 7.
d5 {[%clk 0:02:57.6]} 7... Bg4 {[%clk 0:02:46.2]} 8. O-O {[%clk 0:02:47.8]} 8...
Nbd7 {[%clk 0:02:45.8]} 9. h3 {[%clk 0:02:40.2]} 9... Bxf3 {[%clk 0:02:45]} 10.
Bxf3 {[%clk 0:02:41.1]} 10... a6 {[%clk 0:02:44.5]} 11. a4 {[%clk 0:02:34.8]}
11... Ne8 {[%clk 0:02:44.3]} 12. h4 {[%clk 0:02:30.6]} 12... h5 {[%clk
0:02:38.9]} 13. g3 {[%clk 0:02:28.5]} 13... Nc7 {[%clk 0:02:14.2]} 14. Kg2
{[%clk 0:02:20.7]} 14... b5 {[%clk 0:02:08.8]} 15. axb5 {[%clk 0:02:20.7]} 15...
axb5 {[%clk 0:02:08.3]} 16. Rxa8 {[%clk 0:02:21.3]} 16... Qxa8 {[%clk
0:02:08.3]} 17. cxb5 {[%clk 0:02:22]} 17... Rb8 {[%clk 0:02:05.6]} 18. Be2
{[%clk 0:02:17.8]} 18... Bxc3 {[%clk 0:01:09.2]} 19. bxc3 {[%clk 0:02:18.7]}
19... Nxb5 {[%clk 0:01:09.4]} 20. Qc2 {[%clk 0:01:54]} 20... Nc7 {[%clk
0:01:07.1]} 21. Bg5 {[%clk 0:01:52.7]} 21... e6 {[%clk 0:01:02.9]} 22. c4 {[%clk
0:01:48.3]} 22... exd5 {[%clk 0:01:00.3]} 23. exd5 {[%clk 0:01:47.4]} 23... Re8
{[%clk 0:00:58.4]} 24. f4 {[%clk 0:01:39.2]} 24... Ne6 {[%clk 0:00:57.5]} 25.
Bd3 {[%clk 0:01:25.7]} 25... Nd4 {[%clk 0:00:57.3]} 26. Qf2 {[%clk 0:01:09.9]}
26... Qa3 {[%clk 0:00:52.7]} 27. Bb1 {[%clk 0:01:09.2]} 27... Re2 {[%clk
0:00:51]} 0-1

[Event "Early-Titled-Tuesday-Blitz-September-26-2023"]
[Site "Chess.com"]
[Date "2023.09.26"]
[Round "8"]
[White "Staudenhocker43"]
[Black "stepanosinovsky"]
[Result "1-0"]
[WhiteElo "2567"]
[BlackElo "2359"]
[TimeControl "180+1"]
[EndTime "9:27:16 PDT"]
[Termination "Staudenhocker43 won on time"]

1. e4 {[%clk 0:03:00.9]} 1... e5 {[%clk 0:02:59.2]} 2. Nf3 {[%clk 0:03:01]} 2...
Nc6 {[%clk 0:02:59.5]} 3. Bb5 {[%clk 0:03:00.8]} 3... a6 {[%clk 0:02:59.9]} 4.
Ba4 {[%clk 0:03:01]} 4... Nf6 {[%clk 0:02:59.5]} 5. O-O {[%clk 0:03:01]} 5...
Be7 {[%clk 0:02:58.3]} 6. d3 {[%clk 0:03:00.8]} 6... b5 {[%clk 0:02:58.1]} 7.
Bb3 {[%clk 0:03:00.7]} 7... O-O {[%clk 0:02:58.7]} 8. Nc3 {[%clk 0:02:59.5]}
8... Bb7 {[%clk 0:02:19.4]} 9. h3 {[%clk 0:02:48.7]} 9... Kh8 {[%clk 0:02:02]}
10. a4 {[%clk 0:02:39.6]} 10... b4 {[%clk 0:01:53.6]} 11. Nd5 {[%clk 0:02:38.4]}
11... Nxd5 {[%clk 0:01:52.5]} 12. Bxd5 {[%clk 0:02:39.2]} 12... f5 {[%clk
0:01:09.3]} 13. exf5 {[%clk 0:02:26.5]} 13... Rxf5 {[%clk 0:01:03.5]} 14. Be4
{[%clk 0:02:26.3]} 14... Rf8 {[%clk 0:00:17.6]} 15. Nxe5 {[%clk 0:02:02.4]}
15... Nxe5 {[%clk 0:00:08]} 16. Bxb7 {[%clk 0:02:03.3]} 16... Ra7 {[%clk
0:00:04.4]} 17. Be4 {[%clk 0:01:52.1]} 17... d5 {[%clk 0:00:04.1]} 18. d4 {[%clk
0:01:28.9]} 18... dxe4 {[%clk 0:00:03.6]} 19. dxe5 {[%clk 0:01:28.6]} 1-0

[Event "Early-Titled-Tuesday-Blitz-September-26-2023"]
[Site "Chess.com"]
[Date "2023.09.26"]
[Round "8"]
[White "MaxLeto"]
[Black "Aleksandar-Topalov"]
[Result "1-0"]
[WhiteElo "2515"]
[BlackElo "2390"]
[TimeControl "180+1"]
[EndTime "9:27:27 PDT"]
[Termination "MaxLeto won by resignation"]

1. g4 {[%clk 0:03:00.9]} 1... d5 {[%clk 0:02:55.7]} 2. Bg2 {[%clk 0:02:46.1]}
2... c6 {[%clk 0:02:55.5]} 3. h3 {[%clk 0:02:44.8]} 3... e5 {[%clk 0:02:51]} 4.
d4 {[%clk 0:02:44.8]} 4... h5 {[%clk 0:02:24.8]} 5. dxe5 {[%clk 0:02:37.4]} 5...
hxg4 {[%clk 0:02:23.8]} 6. Nc3 {[%clk 0:02:27.6]} 6... Bb4 {[%clk 0:02:06.8]} 7.
Qd4 {[%clk 0:02:20]} 7... Bxc3+ {[%clk 0:01:56.1]} 8. Qxc3 {[%clk 0:02:17.5]}
8... Ne7 {[%clk 0:01:48.8]} 9. hxg4 {[%clk 0:01:57.4]} 9... Rxh1 {[%clk
0:01:46.4]} 10. Bxh1 {[%clk 0:01:58.3]} 10... Bxg4 {[%clk 0:01:46]} 11. Qg3
{[%clk 0:01:59]} 11... Bf5 {[%clk 0:01:26.8]} 12. Qxg7 {[%clk 0:01:55.9]} 12...
Bxc2 {[%clk 0:01:18.9]} 13. Nf3 {[%clk 0:01:26]} 13... Be4 {[%clk 0:00:59.9]}
14. Ng5 {[%clk 0:00:40]} 14... Bxh1 {[%clk 0:00:56.7]} 15. Qxf7+ {[%clk
0:00:31]} 15... Kd7 {[%clk 0:00:56.5]} 16. Qe6+ {[%clk 0:00:31.7]} 16... Kc7
{[%clk 0:00:56.4]} 17. Qh3 {[%clk 0:00:32.4]} 17... Be4 {[%clk 0:00:50.8]} 18.
Ne6+ {[%clk 0:00:30.8]} 1-0

[Event "Early-Titled-Tuesday-Blitz-September-26-2023"]
[Site "Chess.com"]
[Date "2023.09.26"]
[Round "8"]
[White "Cheer_Down"]
[Black "ZeGood_ZeBad_ZeUgly"]
[Result "1-0"]
[WhiteElo "2472"]
[BlackElo "2302"]
[TimeControl "180+1"]
[EndTime "9:27:28 PDT"]
[Termination "Cheer_Down won by resignation"]

1. e4 {[%clk 0:02:54.7]} 1... c5 {[%clk 0:03:00.2]} 2. Nf3 {[%clk 0:02:53.9]}
2... d6 {[%clk 0:02:59.8]} 3. Bb5+ {[%clk 0:02:53.6]} 3... Nc6 {[%clk
0:02:57.7]} 4. O-O {[%clk 0:02:42.5]} 4... Bd7 {[%clk 0:02:57.8]} 5. Re1 {[%clk
0:02:41]} 5... a6 {[%clk 0:02:58.2]} 6. Bf1 {[%clk 0:02:40.3]} 6... g6 {[%clk
0:02:58.6]} 7. c3 {[%clk 0:02:39.7]} 7... Bh6 {[%clk 0:02:56.7]} 8. d4 {[%clk
0:02:36.2]} 8... Bxc1 {[%clk 0:02:53]} 9. Qxc1 {[%clk 0:02:36.5]} 9... cxd4
{[%clk 0:02:43.7]} 10. cxd4 {[%clk 0:02:31.5]} 10... Rc8 {[%clk 0:02:43.3]} 11.
Nc3 {[%clk 0:02:30.8]} 11... Bg4 {[%clk 0:02:42.2]} 12. Qe3 {[%clk 0:02:26.5]}
12... Nf6 {[%clk 0:02:41.9]} 13. d5 {[%clk 0:02:22]} 13... Nb4 {[%clk
0:02:30.9]} 14. Nd4 {[%clk 0:02:21.4]} 14... e5 {[%clk 0:02:05]} 15. dxe6 {[%clk
0:02:20.9]} 15... Bxe6 {[%clk 0:02:03.5]} 16. Qh6 {[%clk 0:01:39.5]} 16... Ng4
{[%clk 0:01:24.1]} 17. Qf4 {[%clk 0:01:34]} 17... O-O {[%clk 0:01:17.5]} 18.
Nxe6 {[%clk 0:01:30.9]} 18... fxe6 {[%clk 0:01:13.8]} 19. Qxg4 {[%clk
0:01:30.9]} 19... Nc2 {[%clk 0:01:13]} 20. Qxe6+ {[%clk 0:01:30.5]} 20... Kh8
{[%clk 0:01:13.5]} 21. Rad1 {[%clk 0:01:23]} 21... Nxe1 {[%clk 0:01:11.4]} 22.
Rxe1 {[%clk 0:01:23]} 22... Qb6 {[%clk 0:01:06.3]} 23. Re2 {[%clk 0:01:18.5]}
23... Rce8 {[%clk 0:01:06]} 24. Qb3 {[%clk 0:01:17.5]} 24... Qd4 {[%clk
0:01:04.5]} 25. Qd5 {[%clk 0:01:12.3]} 25... Qb6 {[%clk 0:00:55.2]} 26. Rd2
{[%clk 0:01:06.2]} 26... Rf6 {[%clk 0:00:43.8]} 27. Qd4 {[%clk 0:01:03]} 27...
Qd8 {[%clk 0:00:41.4]} 28. Nd5 {[%clk 0:01:01.3]} 1-0

[Event "Early-Titled-Tuesday-Blitz-September-26-2023"]
[Site "Chess.com"]
[Date "2023.09.26"]
[Round "8"]
[White "SAInt_666"]
[Black "TimofeevAr"]
[Result "1-0"]
[WhiteElo "2690"]
[BlackElo "2856"]
[TimeControl "180+1"]
[EndTime "9:27:30 PDT"]
[Termination "SAInt_666 won by resignation"]

1. e4 {[%clk 0:03:00.9]} 1... e6 {[%clk 0:02:59.6]} 2. d4 {[%clk 0:03:00.9]}
2... d5 {[%clk 0:02:59.5]} 3. e5 {[%clk 0:03:01.4]} 3... c5 {[%clk 0:02:59.1]}
4. c3 {[%clk 0:03:01.9]} 4... Qb6 {[%clk 0:02:58.3]} 5. Nf3 {[%clk 0:03:02.1]}
5... Nc6 {[%clk 0:02:57.8]} 6. a3 {[%clk 0:03:01]} 6... f6 {[%clk 0:02:57.5]} 7.
Bd3 {[%clk 0:02:53.8]} 7... fxe5 {[%clk 0:02:53.6]} 8. Nxe5 {[%clk 0:02:54.7]}
8... Nf6 {[%clk 0:02:53.1]} 9. O-O {[%clk 0:02:49.7]} 9... cxd4 {[%clk
0:02:52.6]} 10. cxd4 {[%clk 0:02:44.5]} 10... Bd6 {[%clk 0:02:51.8]} 11. Nxc6
{[%clk 0:02:31.1]} 11... bxc6 {[%clk 0:02:50.3]} 12. Nc3 {[%clk 0:02:31.4]}
12... O-O {[%clk 0:02:49.3]} 13. Re1 {[%clk 0:02:13.1]} 13... Qc7 {[%clk
0:02:42]} 14. h3 {[%clk 0:02:10.5]} 14... e5 {[%clk 0:02:41.7]} 15. dxe5 {[%clk
0:02:08.4]} 15... Bxe5 {[%clk 0:02:41.8]} 16. Bg5 {[%clk 0:02:06]} 16... h6
{[%clk 0:02:41.4]} 17. Be3 {[%clk 0:01:49.1]} 17... Kh8 {[%clk 0:02:34.2]} 18.
Ne2 {[%clk 0:01:41]} 18... Bxb2 {[%clk 0:02:29.1]} 19. Ra2 {[%clk 0:01:34.4]}
19... Be5 {[%clk 0:02:28.8]} 20. Rc2 {[%clk 0:01:32.5]} 20... Bd7 {[%clk
0:02:25.9]} 21. Qc1 {[%clk 0:01:30.8]} 21... Kg8 {[%clk 0:02:10.5]} 22. Nd4
{[%clk 0:01:20.6]} 22... Rac8 {[%clk 0:01:12.2]} 23. Ba6 {[%clk 0:01:18.3]}
23... Bxd4 {[%clk 0:01:12.1]} 24. Bxd4 {[%clk 0:01:17.4]} 24... Rce8 {[%clk
0:01:12.1]} 25. Bd3 {[%clk 0:01:07.4]} 25... Rxe1+ {[%clk 0:01:09.6]} 26. Qxe1
{[%clk 0:01:08.3]} 26... Re8 {[%clk 0:01:09.4]} 27. Re2 {[%clk 0:01:08.3]} 27...
Rxe2 {[%clk 0:00:58.7]} 28. Qxe2 {[%clk 0:01:09.2]} 28... Qd6 {[%clk 0:00:59.4]}
29. Qe3 {[%clk 0:00:59.2]} 29... Qxa3 {[%clk 0:00:54.5]} 30. Bh7+ {[%clk
0:00:58.6]} 30... Kxh7 {[%clk 0:00:54.5]} 31. Qxa3 {[%clk 0:00:59.1]} 1-0

[Event "Early-Titled-Tuesday-Blitz-September-26-2023"]
[Site "Chess.com"]
[Date "2023.09.26"]
[Round "8"]
[White "maurovargas01"]
[Black "Ariadna_Atreides"]
[Result "0-1"]
[WhiteElo "1892"]
[BlackElo "2194"]
[TimeControl "180+1"]
[EndTime "9:27:37 PDT"]
[Termination "Ariadna_Atreides won on time"]

1. e4 {[%clk 0:02:34.3]} 1... c6 {[%clk 0:02:59.2]} 2. d4 {[%clk 0:02:32.6]}
2... d5 {[%clk 0:02:59.8]} 3. e5 {[%clk 0:02:33]} 3... Bf5 {[%clk 0:02:59.5]} 4.
g4 {[%clk 0:02:32.9]} 4... Bd7 {[%clk 0:02:58.2]} 5. f4 {[%clk 0:02:30.8]} 5...
e6 {[%clk 0:02:55.4]} 6. h4 {[%clk 0:02:30.2]} 6... c5 {[%clk 0:02:46.9]} 7. c3
{[%clk 0:02:29.6]} 7... Nc6 {[%clk 0:02:45.5]} 8. h5 {[%clk 0:02:27.1]} 8... Qb6
{[%clk 0:02:42.7]} 9. Nf3 {[%clk 0:02:25.2]} 9... O-O-O {[%clk 0:02:13.5]} 10.
Bg2 {[%clk 0:02:22.8]} 10... f6 {[%clk 0:02:13]} 11. O-O {[%clk 0:02:19.7]}
11... g6 {[%clk 0:02:05.8]} 12. Kh2 {[%clk 0:01:35.5]} 12... gxh5 {[%clk
0:02:02.1]} 13. gxh5 {[%clk 0:01:34.4]} 13... fxe5 {[%clk 0:01:56.4]} 14. fxe5
{[%clk 0:01:25.1]} 14... Bh6 {[%clk 0:01:52.8]} 15. Ng5 {[%clk 0:01:15.4]} 15...
Bxg5 {[%clk 0:01:48]} 16. Bxg5 {[%clk 0:01:14]} 16... Nge7 {[%clk 0:01:47.5]}
17. Rf7 {[%clk 0:00:59.4]} 17... Rde8 {[%clk 0:01:37.9]} 18. Bf6 {[%clk
0:00:42.5]} 18... Rhg8 {[%clk 0:01:36.5]} 19. Rxh7 {[%clk 0:00:39.1]} 19... Qxb2
{[%clk 0:01:20.8]} 20. Nd2 {[%clk 0:00:17.1]} 20... Qxc3 {[%clk 0:01:20.3]} 21.
Rc1 {[%clk 0:00:06.7]} 21... Qg3+ {[%clk 0:01:18.6]} 0-1

[Event "Early-Titled-Tuesday-Blitz-September-26-2023"]
[Site "Chess.com"]
[Date "2023.09.26"]
[Round "8"]
[White "SaqoChess_Twitch"]
[Black "Herman-NY"]
[Result "1-0"]
[WhiteElo "2668"]
[BlackElo "2494"]
[TimeControl "180+1"]
[EndTime "9:27:44 PDT"]
[Termination "SaqoChess_Twitch won by resignation"]

1. d4 {[%clk 0:03:00.9]} 1... Nf6 {[%clk 0:03:00]} 2. c4 {[%clk 0:03:01.6]} 2...
g6 {[%clk 0:03:00.3]} 3. Nc3 {[%clk 0:03:02.3]} 3... Bg7 {[%clk 0:03:01]} 4. e4
{[%clk 0:03:01.6]} 4... d6 {[%clk 0:03:01.6]} 5. Nf3 {[%clk 0:03:01.8]} 5... O-O
{[%clk 0:03:02.3]} 6. Be2 {[%clk 0:03:02.4]} 6... Nbd7 {[%clk 0:03:03]} 7. O-O
{[%clk 0:03:03.1]} 7... e5 {[%clk 0:03:03.7]} 8. dxe5 {[%clk 0:03:03.5]} 8...
dxe5 {[%clk 0:03:03.5]} 9. h3 {[%clk 0:03:02.6]} 9... c6 {[%clk 0:03:03.4]} 10.
Be3 {[%clk 0:03:02.6]} 10... Qe7 {[%clk 0:03:02.7]} 11. Qc2 {[%clk 0:03:01.2]}
11... Nh5 {[%clk 0:02:56.5]} 12. Rfd1 {[%clk 0:02:55.9]} 12... Nf4 {[%clk
0:02:53.3]} 13. Bf1 {[%clk 0:02:55.8]} 13... Ne6 {[%clk 0:02:29.7]} 14. Ne2
{[%clk 0:02:51.4]} 14... f5 {[%clk 0:02:22.6]} 15. a3 {[%clk 0:02:31.5]} 15...
a5 {[%clk 0:01:38.9]} 16. Bd2 {[%clk 0:02:28.1]} 16... fxe4 {[%clk 0:01:04.4]}
17. Qxe4 {[%clk 0:02:27.7]} 17... Ndc5 {[%clk 0:01:04.8]} 18. Qc2 {[%clk
0:02:26.9]} 18... e4 {[%clk 0:01:02.1]} 19. Nh2 {[%clk 0:02:20.7]} 19... Qf6
{[%clk 0:00:27.2]} 20. Be3 {[%clk 0:02:15]} 20... Qxb2 {[%clk 0:00:26.9]} 21.
Ra2 {[%clk 0:02:06.4]} 21... Qxc2 {[%clk 0:00:24]} 22. Rxc2 {[%clk 0:02:07.3]}
22... h5 {[%clk 0:00:19.2]} 23. g4 {[%clk 0:02:07]} 23... Bd7 {[%clk 0:00:13.9]}
24. Bg2 {[%clk 0:02:07]} 24... Rad8 {[%clk 0:00:11.2]} 25. gxh5 {[%clk
0:02:05.5]} 25... gxh5 {[%clk 0:00:11.5]} 26. Rcd2 {[%clk 0:02:05]} 26... b6
{[%clk 0:00:06.4]} 27. Ng3 {[%clk 0:02:05.1]} 27... Bc8 {[%clk 0:00:03.2]} 28.
Nxe4 {[%clk 0:02:04.1]} 28... Rxd2 {[%clk 0:00:02.9]} 29. Rxd2 {[%clk
0:02:04.5]} 29... Nxe4 {[%clk 0:00:02.8]} 30. Bxe4 {[%clk 0:02:05.4]} 30... c5
{[%clk 0:00:02.4]} 31. Rd6 {[%clk 0:02:05.2]} 31... Nd4 {[%clk 0:00:01.8]} 32.
Rxb6 {[%clk 0:02:04.8]} 32... Bxh3 {[%clk 0:00:01.2]} 33. f4 {[%clk 0:01:57.4]}
33... Ne2+ {[%clk 0:00:01.5]} 34. Kf2 {[%clk 0:01:57.2]} 34... Nxf4 {[%clk
0:00:02.4]} 35. Kg3 {[%clk 0:01:56.7]} 35... Ne2+ {[%clk 0:00:02.5]} 36. Kxh3
{[%clk 0:01:56.3]} 36... Be5 {[%clk 0:00:02.9]} 37. Nf3 {[%clk 0:01:49.7]} 37...
Bf4 {[%clk 0:00:03]} 38. Bd5+ {[%clk 0:01:48.7]} 38... Kh7 {[%clk 0:00:02.6]}
39. Bxc5 {[%clk 0:01:43]} 39... Rf5 {[%clk 0:00:01.5]} 40. Be4 {[%clk
0:01:42.9]} 1-0

[Event "Early-Titled-Tuesday-Blitz-September-26-2023"]
[Site "Chess.com"]
[Date "2023.09.26"]
[Round "8"]
[White "Djager97"]
[Black "quvnoq_muxlis"]
[Result "0-1"]
[WhiteElo "2556"]
[BlackElo "2792"]
[TimeControl "180+1"]
[EndTime "9:27:59 PDT"]
[Termination "quvnoq_muxlis won by resignation"]

1. e4 {[%clk 0:03:00.9]} 1... c5 {[%clk 0:02:59.2]} 2. Nf3 {[%clk 0:02:59.5]}
2... Nc6 {[%clk 0:02:59.2]} 3. Bb5 {[%clk 0:03:00]} 3... e6 {[%clk 0:02:55.5]}
4. O-O {[%clk 0:03:00]} 4... Nge7 {[%clk 0:02:55.7]} 5. d4 {[%clk 0:03:00.7]}
5... cxd4 {[%clk 0:02:55.6]} 6. Nxd4 {[%clk 0:03:01.6]} 6... a6 {[%clk
0:02:55.6]} 7. Be2 {[%clk 0:03:01]} 7... Qc7 {[%clk 0:02:55.2]} 8. c4 {[%clk
0:03:00.8]} 8... Ng6 {[%clk 0:02:36.1]} 9. Nc3 {[%clk 0:02:56.3]} 9... Bc5
{[%clk 0:02:36.6]} 10. Nxc6 {[%clk 0:02:53.2]} 10... bxc6 {[%clk 0:02:33.2]} 11.
Rb1 {[%clk 0:02:45.1]} 11... a5 {[%clk 0:02:32.4]} 12. a3 {[%clk 0:02:42.8]}
12... e5 {[%clk 0:02:27]} 13. g3 {[%clk 0:02:23.6]} 13... O-O {[%clk 0:02:19.4]}
14. h4 {[%clk 0:02:22.1]} 14... h6 {[%clk 0:01:50.1]} 15. h5 {[%clk 0:02:21.9]}
15... Ne7 {[%clk 0:01:50.6]} 16. Qd3 {[%clk 0:01:55.5]} 16... Qa7 {[%clk
0:01:14.4]} 17. Bd2 {[%clk 0:01:30.9]} 17... d6 {[%clk 0:01:10.3]} 18. Kg2
{[%clk 0:01:23.6]} 18... f5 {[%clk 0:01:00.3]} 19. f4 {[%clk 0:01:15.8]} 19...
Bd4 {[%clk 0:01:00.6]} 20. Bf3 {[%clk 0:00:55.3]} 20... Ba6 {[%clk 0:00:26.5]}
21. exf5 {[%clk 0:00:49.2]} 21... d5 {[%clk 0:00:25.8]} 22. b3 {[%clk
0:00:37.7]} 22... e4 {[%clk 0:00:25.5]} 23. Qxd4 {[%clk 0:00:36.8]} 23... Qxd4
{[%clk 0:00:25]} 0-1

[Event "Early-Titled-Tuesday-Blitz-September-26-2023"]
[Site "Chess.com"]
[Date "2023.09.26"]
[Round "8"]
[White "s_stefi"]
[Black "rose107"]
[Result "0-1"]
[WhiteElo "1953"]
[BlackElo "2081"]
[TimeControl "180+1"]
[EndTime "9:28:00 PDT"]
[Termination "rose107 won on time"]

1. e4 {[%clk 0:03:00.9]} 1... c5 {[%clk 0:02:59.9]} 2. Nf3 {[%clk 0:02:58.2]}
2... Nc6 {[%clk 0:02:59.2]} 3. d4 {[%clk 0:02:57.5]} 3... cxd4 {[%clk
0:03:00.1]} 4. Nxd4 {[%clk 0:02:58]} 4... Nf6 {[%clk 0:02:59.6]} 5. Nc3 {[%clk
0:02:57.4]} 5... e5 {[%clk 0:03:00.1]} 6. Ndb5 {[%clk 0:02:56.1]} 6... d6 {[%clk
0:03:00.5]} 7. Bg5 {[%clk 0:02:55]} 7... a6 {[%clk 0:03:01.1]} 8. Na3 {[%clk
0:02:54.3]} 8... b5 {[%clk 0:03:01.2]} 9. Nd5 {[%clk 0:02:52.5]} 9... Be7 {[%clk
0:03:01.2]} 10. Bxf6 {[%clk 0:02:53.1]} 10... Bxf6 {[%clk 0:03:02.1]} 11. c3
{[%clk 0:02:52.4]} 11... O-O {[%clk 0:03:01.7]} 12. Nc2 {[%clk 0:02:50.2]} 12...
Bg5 {[%clk 0:03:01.8]} 13. h4 {[%clk 0:02:45.9]} 13... Bh6 {[%clk 0:03:01.6]}
14. g4 {[%clk 0:01:56.1]} 14... Bf4 {[%clk 0:03:01.4]} 15. Qf3 {[%clk
0:01:53.1]} 15... Be6 {[%clk 0:02:54.6]} 16. Nxf4 {[%clk 0:01:52.1]} 16... Qf6
{[%clk 0:02:54.7]} 17. Be2 {[%clk 0:01:43.4]} 17... exf4 {[%clk 0:02:53.6]} 18.
O-O-O {[%clk 0:01:10.4]} 18... Ne5 {[%clk 0:02:52.4]} 19. g5 {[%clk 0:00:31.9]}
19... Qg6 {[%clk 0:02:27.4]} 20. Qxf4 {[%clk 0:00:27.8]} 20... Bxa2 {[%clk
0:02:26.4]} 21. Nb4 {[%clk 0:00:15.9]} 21... Bb3 {[%clk 0:02:24.9]} 22. Rdg1
{[%clk 0:00:07.6]} 22... a5 {[%clk 0:02:23.3]} 23. Nd5 {[%clk 0:00:07.1]} 23...
Bxd5 {[%clk 0:02:22.7]} 24. exd5 {[%clk 0:00:08]} 24... Nd3+ {[%clk 0:02:21.7]}
25. Bxd3 {[%clk 0:00:08.4]} 25... Qxd3 {[%clk 0:02:22.1]} 26. h5 {[%clk
0:00:04]} 26... b4 {[%clk 0:02:21.4]} 27. Qd4 {[%clk 0:00:03]} 27... Qe2 {[%clk
0:02:17.4]} 28. h6 {[%clk 0:00:02]} 28... Qe5 {[%clk 0:02:08.9]} 29. Qxe5 {[%clk
0:00:01.9]} 29... dxe5 {[%clk 0:02:09.2]} 30. hxg7 {[%clk 0:00:02.8]} 30... Kxg7
{[%clk 0:02:09]} 31. Re1 {[%clk 0:00:03.4]} 31... Rfe8 {[%clk 0:02:08.6]} 32.
Kc2 {[%clk 0:00:02.5]} 32... Rad8 {[%clk 0:02:05.6]} 33. Rd1 {[%clk 0:00:02]}
33... Re7 {[%clk 0:02:03.9]} 34. Rh6 {[%clk 0:00:02.4]} 34... Red7 {[%clk
0:02:02.3]} 35. Rdh1 {[%clk 0:00:01.3]} 35... Rxd5 {[%clk 0:01:59.9]} 36. Rxh7+
{[%clk 0:00:01.8]} 36... Kg6 {[%clk 0:02:00.2]} 37. R7h6+ {[%clk 0:00:02.2]}
37... Kxg5 {[%clk 0:02:00.4]} 38. R1h5+ {[%clk 0:00:02]} 38... Kg4 {[%clk
0:01:59.3]} 39. Rh4+ {[%clk 0:00:02.7]} 39... Kf3 {[%clk 0:01:59.5]} 40. Rf6+
{[%clk 0:00:02.4]} 40... Kg2 {[%clk 0:01:52.9]} 41. Rxf7 {[%clk 0:00:03.3]}
41... Rd2+ {[%clk 0:01:52]} 42. Kb3 {[%clk 0:00:02.7]} 42... Rxf2 {[%clk
0:01:50.9]} 43. Rg4+ {[%clk 0:00:02.9]} 43... Kf1 {[%clk 0:01:50.6]} 44. Rxf2+
{[%clk 0:00:01.8]} 44... Kxf2 {[%clk 0:01:51.5]} 45. Re4 {[%clk 0:00:02.1]}
45... bxc3 {[%clk 0:01:51]} 46. bxc3 {[%clk 0:00:01.9]} 46... Rd5 {[%clk
0:01:50.8]} 47. Ka4 {[%clk 0:00:01.8]} 47... Kf3 {[%clk 0:01:50.1]} 0-1